bitfinex-derivatives/quotes_ETHF0:USTF0_20250621
["timestamp","ask_amount","ask_price","bid_price","bid_amount"]
[1750538371217,0.83329,2399.7,2399.4,8.1961]
[1750538371417,7.35431,2400.0,2399.4,1.3261]
[1750538371622,0.98782893,2399.9,2399.3,10.00823207]
[1750538371813,0.83332,2399.6,2399.3,8.8672]
[1750538372014,1.3674,2399.9,2399.3,8.8672]
[1750538372215,0.83332,2399.6,2399.5,0.83334]
[1750538372519,0.83331,2399.7,2399.5,0.83334]
[1750538373322,0.83331,2399.7,2399.6,0.83332]
[1750538373518,0.83331,2399.7,2399.5,0.83333]
[1750538373720,1.47752,2399.6,2399.5,0.83333]
[1750538374023,1.47752,2399.6,2399.3,11.33333207]
[1750538374024,0.83336,2399.5,2399.4,0.83337]
[1750538374819,1.47754,2399.6,2399.5,0.83336]
[1750538375124,0.83336,2399.5,2399.4,0.83337]
[1750538375314,0.6442,2399.6,2399.5,0.83336]
[1750538376122,1.47752,2399.6,2399.5,0.83336]
[1750538377921,0.6442,2399.6,2399.5,0.83336]
[1750538378219,0.83331,2399.7,2399.6,0.83332]
[1750538379011,0.83329,2399.8,2399.7,0.83327]
[1750538380323,0.8333,2399.7,2399.6,0.83329]
[1750538380724,0.83335,2399.6,2399.5,0.83335]
[1750538381024,0.83335,2399.6,2399.4,1.3664]
[1750538381025,0.83336,2399.5,2399.4,0.83338]
[1750538382223,0.83339,2399.4,2399.3,10.16953207]
[1750538382423,0.83338,2399.5,2399.4,0.83338]
[1750538382825,3.36896,2399.8,2399.3,12.80815755]
[1750538382826,0.83339,2399.4,2399.3,12.80815755]
[1750538383029,3.36896,2399.8,2399.1,3.30061207]
[1750538383030,0.83346,2399.2,2399.1,3.30061207]
[1750538383326,2.08333,2399.6,2399.2,0.83346]
[1750538383525,0.83346,2399.2,2399.1,0.83347]
[1750538383830,0.83345,2399.3,2399.1,0.83347]
[1750538384221,0.83341,2399.4,2399.2,0.83346]
[1750538384527,0.83342,2399.4,2399.2,0.83346]
[1750538384728,0.83342,2399.3,2399.1,0.83347]
[1750538384924,1.2858,2399.6,2399.0,5.10574755]
[1750538384925,0.83341,2399.4,2399.0,5.10574755]
[1750538385132,1.49658,2399.5,2399.3,0.83341]
[1750538385321,0.83339,2399.4,2399.3,0.83341]
[1750538385829,0.83344,2399.3,2399.2,0.83345]
[1750538386626,0.83342,2399.4,2399.3,0.83342]
[1750538386827,1.49659,2399.5,2399.4,0.83339]
[1750538387129,0.83339,2399.4,2399.3,0.8334]
[1750538388231,0.8334,2399.4,2399.3,0.83341]
[1750538388836,0.83344,2399.3,2399.2,0.83345]
[1750538391132,0.6632,2399.5,2399.0,2.46713207]
[1750538391133,0.83346,2399.2,2399.0,2.46713207]
[1750538391333,0.83346,2399.2,2399.1,0.83349]
[1750538392636,0.83345,2399.3,2399.2,0.83346]
[1750538394837,0.83347,2399.2,2399.1,0.83347]
[1750538399540,0.6905,2399.3,2399.1,0.83347]
[1750538399541,1.52395,2399.3,2399.2,0.83346]
[1750538400343,0.06847599,2399.4,2399.3,0.83342]
[1750538400647,0.83342,2399.3,2399.2,3.60494]
[1750538403248,0.90188599,2399.4,2399.3,0.83342]
[1750538404443,0.06847599,2399.4,2399.3,0.83342]
[1750538404650,0.06847599,2399.4,2399.3,4.79523548]
[1750538404837,0.90186599,2399.4,2399.3,4.79523548]
[1750538405038,0.06847599,2399.4,2399.3,4.79523548]
[1750538405237,0.83338,2399.5,2399.4,0.83339]
[1750538405444,0.83338,2399.5,2399.4,2.15659]
[1750538405752,1.82295568,2399.5,2399.4,2.15659]
[1750538406350,0.83334,2399.6,2399.5,0.83335]
[1750538406550,0.98962974,2399.6,2399.5,3.47196548]
[1750538406751,0.83326,2399.8,2399.7,0.83329]
[1750538407046,0.83326,2399.8,2399.7,2.63861548]
[1750538407251,0.83329,2399.7,2399.6,2.1031]
[1750538407452,1.8225725,2399.7,2399.6,2.1031]
[1750538407852,0.9892825,2399.7,2399.3,3.30055207]
[1750538408147,0.9892825,2399.7,2399.2,0.7043]
[1750538408148,1.50763,2399.6,2399.2,0.7043]
[1750538408353,0.6743,2399.6,2399.5,3.47196548]
[1750538408553,3.2078,2400.0,2399.5,2.63861548]
[1750538408752,0.98938752,2399.9,2399.8,3.47183548]
[1750538409139,0.7035,2400.3,2400.2,0.83311]
[1750538409140,3.9113,2400.3,2400.2,0.83311]
[1750538409344,4.19665997,2400.3,2399.8,1.4047]
[1750538409552,0.83328,2399.8,2399.6,3.16853207]
[1750538409854,0.83328,2399.8,2399.6,1.53471]
[1750538410446,0.83318,2400.0,2399.9,0.83321]
[1750538410649,0.83323,2399.9,2399.7,1.4047]
[1750538410949,0.83319,2400.0,2399.8,3.47183548]
[1750538411151,0.7035,2400.2,2399.8,2.63861548]
[1750538411349,4.04088,2400.3,2400.2,0.83311]
[1750538411547,5.02928286,2400.3,2400.1,0.83312]
[1750538411859,0.98839286,2400.2,2400.1,2.20242]
[1750538412051,0.8331,2400.3,2400.1,2.20242]
[1750538412447,1.3833,2400.5,2400.1,2.20243]
[1750538412651,0.98801099,2400.4,2400.1,2.20243]
[1750538412852,0.98801099,2400.3,2400.1,2.20243]
[1750538413052,1.3833,2400.5,2400.1,2.20243]
[1750538413352,0.83311,2400.2,2400.1,1.3693]
[1750538413653,0.83313,2400.2,2400.1,0.83315]
[1750538414450,0.83313,2400.2,2400.0,1.50506]
[1750538415658,0.83313,2400.2,2400.1,0.83315]
[1750538416152,0.83315,2400.1,2399.9,0.83321]
[1750538416459,0.83315,2400.1,2399.7,1.3693]
[1750538416460,0.83318,2400.0,2399.7,1.3693]
[1750538416757,0.83318,2400.0,2399.8,0.83322]
[1750538416957,1.49637,2400.1,2399.9,0.83322]
[1750538417255,1.49637,2400.1,2400.0,0.83318]
[1750538417644,0.6632,2400.1,2399.9,0.83319]
[1750538417848,1.49637,2400.1,2400.0,0.83318]
[1750538418248,3.2078,2400.3,2399.9,3.2078]
[1750538418451,0.6907,2400.2,2399.7,4.5771]
[1750538418650,0.83322,2399.9,2399.6,0.6826]
[1750538418858,0.83323,2399.9,2399.8,0.83325]
[1750538419155,2.0829,2400.1,2399.6,6.863]
[1750538419359,0.83326,2399.8,2399.7,0.83328]
[1750538419658,0.83325,2399.8,2399.7,0.83328]
[1750538421557,0.83322,2399.9,2399.8,0.83324]
[1750538421758,2.07837599,2400.0,2399.7,0.83326]
[1750538421961,0.83323,2399.9,2399.8,0.83325]
[1750538422161,0.83325,2399.8,2399.7,0.83327]
[1750538422658,0.83324,2399.9,2399.7,0.83327]
[1750538423048,0.83323,2399.9,2399.6,6.863]
[1750538423254,2.91157599,2400.0,2399.8,0.83324]
[1750538424160,0.83322,2399.9,2399.8,0.83324]
[1750538425755,0.83333,2399.6,2399.5,0.83333]
[1750538426060,0.83331,2399.7,2399.6,0.83332]
[1750538426256,0.83332,2399.6,2399.5,0.83333]
[1750538426449,0.83331,2399.7,2399.5,0.83333]
[1750538426654,0.83332,2399.6,2399.5,0.83333]
[1750538426853,6.01775599,2400.0,2399.5,2.63861548]
[1750538426854,3.93477599,2400.0,2399.5,2.63861548]
[1750538427052,0.83326,2399.8,2399.7,0.83326]
[1750538428654,0.83329,2399.7,2399.6,0.83329]
[1750538431463,0.83327,2399.8,2399.7,0.83326]
[1750538433365,0.83324,2399.9,2399.8,0.83323]
[1750538433755,0.83324,2399.9,2399.8,2.23403]
[1750538433954,0.90168599,2400.0,2399.9,0.83322]
[1750538434162,0.06847599,2400.0,2399.9,0.83322]
[1750538434362,0.06847599,2400.0,2399.9,3.47183548]
[1750538434659,1.5,2400.3,2400.2,0.83311]
[1750538434861,3.2078,2400.4,2400.3,0.83308]
[1750538435060,0.83304,2400.4,2400.3,0.83308]
[1750538435558,0.83303,2400.5,2400.4,0.83304]
[1750538435866,0.833,2400.6,2400.4,0.83304]
[1750538436064,0.83296,2400.7,2400.5,0.83301]
[1750538436255,0.98707928,2400.6,2400.5,0.83301]
[1750538437264,0.83295,2400.7,2400.5,0.83301]
[1750538438469,3.8751,2400.8,2400.6,0.83296]
[1750538438663,0.98663733,2400.7,2400.6,0.83296]
[1750538439058,0.98663733,2400.7,2400.4,1.3516]
[1750538439263,0.833,2400.6,2400.4,2.18463]
[1750538439862,2.74961,2400.8,2400.3,3.2078]
[1750538440163,0.83306,2400.4,2400.1,8.1972]
[1750538440366,0.83306,2400.4,2400.1,9.5362]
[1750538440566,0.83306,2400.4,2400.2,0.83308]
[1750538441167,0.83311,2400.2,2400.1,2.6862]
[1750538441467,0.83311,2400.2,2400.0,6.50809207]
[1750538441665,0.83311,2400.2,2400.0,4.04096]
[1750538441865,0.83318,2400.0,2399.9,6.85]
[1750538442172,0.83329,2399.7,2399.5,13.35827207]
[1750538442558,0.83332,2399.6,2399.5,10.89114]
[1750538442763,0.83332,2399.6,2399.5,3.2078]
[1750538444563,0.83345,2399.3,2399.2,3.2078]
[1750538444761,0.83341,2399.4,2399.2,4.04126]
[1750538445871,0.83342,2399.3,2399.2,3.2078]
[1750538446072,0.83341,2399.4,2399.2,4.04126]
[1750538447474,0.83342,2399.3,2399.2,4.04126]
[1750538447672,0.83349,2399.1,2399.0,2.037]
[1750538447978,5.84641548,2399.6,2399.1,0.83348]
[1750538448172,0.83345,2399.3,2399.1,0.83348]
[1750538448472,0.6985,2399.4,2399.0,2.87051]
[1750538448772,0.83348,2399.2,2399.0,2.87051]
[1750538448968,0.83349,2399.1,2399.0,2.037]
[1750538450172,2.08374,2399.1,2398.6,3.2078]
[1750538450473,1.3063,2399.0,2398.7,0.83363]
[1750538450670,0.8336,2398.8,2398.7,0.83363]
[1750538450868,0.8336,2398.8,2398.6,4.04145]
[1750538451066,0.8336,2398.8,2398.6,5.44675]
[1750538451468,0.8336,2398.8,2398.7,0.83363]
[1750538451664,0.83363,2398.7,2398.6,3.2078]
[1750538451866,0.83374,2398.4,2398.3,5.40117]
[1750538452072,0.83374,2398.4,2398.3,4.5674]
[1750538452269,0.83374,2398.4,2398.3,3.8689]
[1750538452467,0.83374,2398.4,2398.3,3.2078]
[1750538453066,3.876,2398.7,2398.3,3.2078]
[1750538453269,0.6682,2398.7,2398.5,2.63861548]
[1750538453571,0.83367,2398.6,2398.4,2.23901]
[1750538453770,0.83367,2398.6,2398.5,0.8337]
[1750538453965,0.6682,2398.7,2398.4,1.4053]
[1750538453966,0.8337,2398.5,2398.4,1.4053]
[1750538454166,0.8337,2398.5,2398.4,2.23904]
[1750538454376,0.8337,2398.6,2398.4,2.23904]
[1750538454578,0.83374,2398.4,2398.3,6.68017548]
[1750538454869,0.83374,2398.4,2398.3,3.2078]
[1750538455470,0.83383,2398.2,2398.0,0.83384]
[1750538455871,0.83384,2398.1,2398.0,0.83387]
[1750538456072,0.83383,2398.2,2398.0,0.83387]
[1750538456577,0.83379,2398.3,2398.1,0.83384]
[1750538456976,0.83381,2398.2,2398.1,0.83384]
[1750538457672,0.83388,2398.0,2397.9,0.83388]
[1750538457877,0.83391,2397.9,2397.8,3.2078]
[1750538458274,0.83391,2397.9,2397.8,4.04175]
[1750538459175,0.83391,2397.9,2397.8,3.2078]
[1750538459374,0.6851,2398.1,2397.6,8.219]
[1750538459375,0.83397,2397.8,2397.7,0.83397]
[1750538460372,0.83398,2397.7,2397.6,8.219]
[1750538460971,0.83398,2397.7,2397.6,9.05302]
[1750538461173,0.83398,2397.7,2397.6,8.219]
[1750538461380,1.51272,2397.9,2397.6,6.842]
[1750538461577,0.83379,2398.3,2397.8,2.63861548]
[1750538461775,0.83374,2398.4,2398.1,3.2078]
[1750538462075,10.0508,2398.5,2398.2,0.83379]
[1750538462271,0.83375,2398.4,2398.1,4.5568]
[1750538462467,3.2078,2398.5,2398.4,0.83374]
[1750538463483,3.2078,2398.5,2398.4,2.25714]
[1750538463692,3.2078,2398.5,2398.2,0.83379]
[1750538463984,4.04154,2398.5,2398.3,0.83377]
[1750538464175,3.2078,2398.5,2398.4,0.83374]
[1750538464490,4.04152,2398.5,2398.3,0.83375]
[1750538464785,0.83375,2398.4,2398.3,0.83377]
[1750538465785,0.83375,2398.4,2398.2,2.25718]
[1750538466089,0.83374,2398.4,2398.2,2.25718]
[1750538466286,5.84641548,2398.5,2398.0,1.3131]
[1750538466584,0.83378,2398.3,2398.1,0.83381]
[1750538466786,0.83378,2398.3,2398.1,2.24601]
[1750538466991,0.83378,2398.3,2398.2,0.83381]
[1750538467287,4.04152,2398.5,2398.1,7.25861548]
[1750538467586,4.0415,2398.5,2398.1,7.25861548]
[1750538467786,3.2078,2398.5,2398.4,0.83374]
[1750538467987,4.0415,2398.5,2398.4,0.83374]
[1750538468993,3.2078,2398.5,2398.4,0.83374]
[1750538469486,4.0415,2398.5,2398.4,0.83374]
[1750538471492,1.3204,2398.7,2398.4,0.83374]
[1750538471692,0.8337,2398.5,2398.3,2.63861548]
[1750538471988,0.8337,2398.5,2398.4,1.3633]
[1750538472385,0.83378,2398.3,2398.1,3.2078]
[1750538472586,0.83374,2398.4,2398.3,0.83375]
[1750538472789,0.83371,2398.5,2398.4,0.83373]
[1750538473189,0.83371,2398.5,2398.3,0.83375]
[1750538473492,0.83373,2398.5,2398.2,1.3152]
[1750538473687,0.83373,2398.5,2398.3,0.83374]
[1750538473987,0.83374,2398.4,2398.3,0.83374]
[1750538474789,0.83374,2398.4,2398.2,2.14898]
[1750538474990,0.83374,2398.4,2398.3,0.83377]
[1750538475892,0.83374,2398.4,2398.2,1.3152]
[1750538475893,0.83372,2398.5,2398.4,0.83373]
[1750538476089,1.3204,2398.7,2398.3,0.83375]
[1750538476281,0.83374,2398.4,2398.3,0.83375]
[1750538476893,2.63861548,2398.6,2398.1,3.2078]
[1750538477092,0.83374,2398.4,2398.3,0.83375]
[1750538478096,0.83373,2398.5,2398.4,0.83374]
[1750538478497,0.83374,2398.4,2398.3,0.83375]
[1750538479397,0.90221599,2398.4,2398.3,0.83375]
[1750538479593,0.83377,2398.3,2398.2,2.24899]
[1750538479996,0.90223599,2398.4,2398.3,0.83377]
[1750538480698,0.83377,2398.3,2398.2,2.24898]
[1750538480894,0.90223599,2398.4,2398.3,0.83377]
[1750538481096,0.83377,2398.3,2398.2,2.24898]
[1750538481595,0.90223599,2398.4,2398.3,0.83377]
[1750538482600,0.06847599,2398.4,2398.0,3.78023207]
[1750538482903,0.90222599,2398.4,2398.3,0.83377]
[1750538483290,0.06847599,2398.4,2398.3,0.83377]
[1750538484397,0.90223599,2398.4,2398.3,0.83377]
[1750538484600,0.06847599,2398.4,2398.3,0.83377]
[1750538484897,0.90221599,2398.4,2398.3,0.83377]
[1750538488092,0.06847599,2398.4,2398.3,0.83377]
[1750538488292,0.6788,2398.7,2398.6,0.83367]
[1750538488500,0.98986312,2398.7,2398.6,3.2078]
[1750538488704,0.83363,2398.7,2398.6,0.83367]
[1750538488903,0.83363,2398.7,2398.6,2.17787]
[1750538489092,0.83363,2398.7,2398.6,1.3442]
[1750538489299,0.83367,2398.6,2398.5,1.51458]
[1750538489997,0.8337,2398.5,2398.4,0.83372]
[1750538490194,0.8337,2398.5,2398.3,7.01913207]
[1750538490195,0.83365,2398.7,2398.6,0.83366]
[1750538490390,1.82350698,2398.7,2398.6,0.83366]
[1750538491298,0.83365,2398.7,2398.6,0.83366]
[1750538491516,0.83368,2398.6,2398.5,0.83368]
[1750538491702,0.8337,2398.5,2398.4,2.17792]
[1750538492306,0.8337,2398.5,2398.4,0.83372]
[1750538492501,0.83369,2398.6,2398.5,0.8337]
[1750538492803,0.83372,2398.5,2398.4,0.83372]
[1750538493300,0.83374,2398.4,2398.3,6.50869207]
[1750538493498,0.90221599,2398.4,2398.2,4.67311207]
[1750538493702,0.83377,2398.3,2398.2,4.67311207]
[1750538493897,0.83377,2398.3,2398.2,2.20598]
[1750538494105,0.06847599,2398.4,2398.2,0.83378]
[1750538494297,0.83377,2398.3,2398.2,0.83378]
[1750538494807,0.83391,2397.9,2397.7,6.50889207]
[1750538495107,12.83988548,2398.3,2397.7,5.67493207]
[1750538495108,0.83389,2398.0,2397.7,5.67493207]
[1750538495408,0.83388,2398.0,2397.8,0.83393]
[1750538495704,1.49658,2398.0,2397.9,0.83391]
[1750538496302,1.49658,2398.0,2397.8,0.83393]
[1750538496505,0.83391,2397.9,2397.7,6.50889207]
[1750538496907,1.4966,2398.0,2397.8,0.83394]
[1750538497607,0.83391,2397.9,2397.8,0.83394]
[1750538497812,1.4966,2398.0,2397.7,5.67493207]
[1750538498108,0.6627,2398.0,2397.9,0.83391]
[1750538498307,0.83391,2397.9,2397.8,2.16573]
[1750538498502,0.83391,2397.9,2397.8,0.83393]
[1750538499209,0.83391,2397.9,2397.7,6.50889207]
[1750538499410,0.83395,2397.8,2397.7,6.50889207]
[1750538499709,0.83392,2397.9,2397.8,0.83394]
[1750538500007,0.83395,2397.8,2397.7,6.50891207]
[1750538500209,0.83393,2397.9,2397.8,0.83395]
[1750538500511,0.83395,2397.8,2397.7,4.04177]
[1750538501405,0.83395,2397.8,2397.7,3.2078]
[1750538502706,0.83405,2397.5,2397.4,5.67493207]
[1750538502906,0.83405,2397.5,2397.4,4.04187]
[1750538503108,0.83405,2397.5,2397.4,3.2078]
[1750538503412,1.53663,2397.6,2397.4,3.2078]
[1750538503716,1.53663,2397.6,2397.4,4.04185]
[1750538503905,0.7026,2397.6,2397.5,0.83405]
[1750538504110,6.834,2398.0,2397.4,5.84641548]
[1750538504307,0.83399,2397.7,2397.5,3.53522]
[1750538504507,0.83399,2397.7,2397.6,0.83402]
[1750538505318,0.83399,2397.7,2397.5,3.53523]
[1750538505516,0.83399,2397.7,2397.6,0.83402]
[1750538506529,0.83399,2397.7,2397.5,0.83403]
[1750538506732,0.83405,2397.5,2397.4,10.0418]
[1750538506933,0.83404,2397.6,2397.4,4.04188]
[1750538507128,0.83404,2397.6,2397.4,3.2078]
[1750538507434,0.83405,2397.5,2397.4,3.2078]
[1750538508032,0.83415,2397.2,2397.1,3.2078]
[1750538508230,0.83415,2397.2,2397.1,4.04199]
[1750538508430,0.83414,2397.3,2397.1,4.04199]
[1750538508630,0.83415,2397.2,2397.1,3.2078]
[1750538508832,10.0418,2397.2,2396.8,3.2078]
[1750538509028,0.83423,2397.0,2396.9,0.83426]
[1750538509336,0.83423,2397.0,2396.8,4.04208]
[1750538510133,0.83421,2397.1,2396.9,0.83426]
[1750538510334,3.2078,2397.2,2396.8,3.2078]
[1750538510537,4.04197,2397.2,2397.0,0.83421]
[1750538510932,3.2078,2397.2,2397.1,0.83419]
[1750538511930,3.2078,2397.2,2397.0,0.8342]
[1750538512438,4.04198,2397.2,2397.0,0.8342]
[1750538512833,0.83419,2397.1,2397.0,0.8342]
[1750538513129,0.83418,2397.2,2397.0,0.8342]
[1750538513529,0.83419,2397.1,2397.0,0.8342]
[1750538513940,0.83419,2397.1,2396.9,2.24063]
[1750538514139,2.63861548,2397.2,2396.8,4.04208]
[1750538514337,2.63861548,2397.2,2396.8,3.2078]
[1750538514338,0.83426,2396.9,2396.8,3.2078]
[1750538514634,0.83431,2396.8,2396.6,6.835]
[1750538514831,1.48791,2396.8,2396.6,6.835]
[1750538515228,0.6536,2396.8,2396.7,0.83433]
[1750538515740,2.0428,2397.1,2396.7,0.83433]
[1750538515741,1.49951,2397.1,2397.0,0.83422]
[1750538516037,1.47988,2397.2,2397.0,0.83421]
[1750538516430,0.83419,2397.1,2397.0,0.83421]
[1750538516631,0.83419,2397.1,2396.9,1.49974]
[1750538516827,0.83422,2397.0,2396.9,2.80554]
[1750538517040,0.83422,2397.0,2396.9,0.83424]
[1750538517240,0.83422,2397.0,2396.8,4.04207]
[1750538517438,0.6457,2397.2,2396.8,4.04207]
[1750538517635,0.83424,2397.0,2396.9,0.83425]
[1750538518239,0.83424,2397.0,2396.8,0.83427]
[1750538518440,0.83426,2396.9,2396.8,0.83427]
[1750538518640,0.83425,2397.0,2396.8,0.83427]
[1750538518845,0.83425,2397.0,2396.9,0.83426]
[1750538519031,0.83426,2396.9,2396.8,0.83428]
[1750538519542,0.83425,2397.0,2396.9,0.83426]
[1750538520039,0.83428,2396.9,2396.7,0.83431]
[1750538520244,0.83429,2396.8,2396.7,0.83431]
[1750538520431,2.63861548,2396.9,2396.5,3.2078]
[1750538520632,1.52396,2396.7,2396.6,0.83436]
[1750538520827,0.6896,2396.7,2396.6,0.83436]
[1750538521641,0.83427,2396.9,2396.8,0.83429]
[1750538521945,0.8343,2396.8,2396.7,0.83432]
[1750538522532,0.83429,2396.9,2396.7,0.83432]
[1750538522942,0.83429,2396.8,2396.7,0.83432]
[1750538523544,0.83428,2396.9,2396.8,0.83429]
[1750538524141,0.6935,2397.0,2396.9,0.83426]
[1750538524337,0.6935,2397.0,2396.8,0.83427]
[1750538524537,0.6935,2397.0,2396.9,0.83426]
[1750538524737,0.83426,2396.9,2396.8,0.83427]
[1750538524937,1.52775,2397.0,2396.9,0.83426]
[1750538525547,0.6935,2397.0,2396.9,0.83426]
[1750538525746,1.52772,2397.0,2396.9,0.83426]
[1750538526246,0.6935,2397.0,2396.7,0.83433]
[1750538526441,0.83432,2396.8,2396.7,0.83433]
[1750538528143,0.83428,2396.9,2396.8,0.83429]
[1750538528448,0.6935,2397.0,2396.9,0.83426]
[1750538528747,1.52772,2397.0,2396.9,0.83426]
[1750538529451,0.6935,2397.0,2396.9,0.83426]
[1750538530545,1.52772,2397.0,2396.9,0.83426]
[1750538530745,0.83428,2396.9,2396.8,0.83428]
[1750538531342,1.52775,2397.0,2396.9,0.83426]
[1750538531647,0.6935,2397.0,2396.7,2.0297]
[1750538531853,0.83429,2396.8,2396.7,0.83431]
[1750538533051,0.83428,2396.9,2396.8,0.83429]
[1750538533354,0.6935,2397.0,2396.6,1.2885]
[1750538533548,1.52775,2397.0,2396.9,0.83426]
[1750538534244,1.52775,2397.0,2396.8,0.83426]
[1750538534245,0.83426,2396.9,2396.8,0.83426]
[1750538534445,1.52774,2397.0,2396.8,0.83426]
[1750538534644,0.6935,2397.0,2396.8,0.83427]
[1750538534949,0.83426,2396.9,2396.8,0.83427]
[1750538535950,1.52774,2397.0,2396.9,0.83426]
[1750538536151,0.83426,2396.9,2396.8,0.83427]
[1750538537650,1.52775,2397.0,2396.9,0.83426]
[1750538537854,2.51922866,2397.0,2396.9,0.83426]
[1750538538254,1.82572866,2397.0,2396.9,0.83426]
[1750538538656,1.82572866,2397.0,2396.9,2.14926]
[1750538538852,1.82572866,2397.0,2396.9,1.315]
[1750538539455,0.99147866,2397.0,2396.9,2.14926]
[1750538539652,1.82569866,2397.0,2396.9,2.14926]
[1750538540253,1.82569866,2397.0,2396.9,1.315]
[1750538540454,1.82569866,2397.0,2396.9,2.14926]
[1750538540859,1.82569866,2397.0,2396.9,1.315]
[1750538541945,0.99147866,2397.0,2396.9,2.14926]
[1750538542350,0.6452,2397.5,2396.9,10.25979207]
[1750538542557,0.99206439,2397.4,2397.0,8.1645]
[1750538542757,0.83419,2397.1,2397.0,8.99872]
[1750538543356,0.83417,2397.2,2397.1,0.83419]
[1750538543554,1.82616476,2397.2,2397.1,0.83419]
[1750538543760,0.83419,2397.1,2397.0,8.99871]
[1750538543958,0.83417,2397.2,2397.1,0.83419]
[1750538544256,1.82603016,2397.2,2397.0,2.1757]
[1750538544459,0.83417,2397.2,2397.0,2.1757]
[1750538544846,0.83417,2397.2,2397.1,0.83419]
[1750538545050,6.68967947,2397.5,2397.0,0.83421]
[1750538545051,0.9918608,2397.4,2397.0,0.83421]
[1750538545360,0.9918608,2397.3,2397.2,0.83415]
[1750538545756,0.9918608,2397.3,2397.2,2.86185]
[1750538545954,1.47926,2397.5,2397.2,2.86185]
[1750538546160,1.47926,2397.5,2397.4,0.83408]
[1750538546456,1.47926,2397.5,2397.3,2.1705]
[1750538546457,0.83408,2397.4,2397.3,2.1705]
[1750538546653,1.82547331,2397.4,2397.3,2.1705]
[1750538546853,1.82547331,2397.4,2397.3,1.3364]
[1750538547056,0.83412,2397.3,2397.2,1.3801]
[1750538547255,0.83415,2397.2,2397.1,3.2078]
[1750538547456,0.83415,2397.2,2397.1,4.04199]
[1750538548061,0.83415,2397.2,2397.1,3.2078]
[1750538548562,3.28929947,2397.5,2396.8,15.81883154]
[1750538548762,0.83416,2397.2,2397.1,0.83417]
[1750538549064,0.6452,2397.5,2397.2,0.83413]
[1750538549263,1.82448159,2397.4,2397.3,0.83412]
[1750538549565,0.83413,2397.3,2397.2,0.83413]
[1750538549861,0.83413,2397.3,2397.1,5.45657]
[1750538550159,0.83413,2397.3,2397.1,4.6224]
[1750538550362,0.83413,2397.3,2397.2,0.83415]
[1750538550764,0.8341,2397.4,2397.2,0.83415]
[1750538551459,0.8341,2397.4,2397.3,0.83412]
[1750538551658,0.99005839,2397.4,2397.3,0.83412]
[1750538552464,1.47925,2397.5,2397.4,0.83409]
[1750538552665,1.63513528,2397.5,2397.4,0.83409]
[1750538552863,0.98993528,2397.5,2397.4,0.83409]
[1750538553255,0.98993528,2397.5,2397.3,1.4871]
[1750538553458,0.83407,2397.5,2397.2,1.3875]
[1750538553658,3.2078,2397.6,2397.2,1.3875]
[1750538553659,4.04184,2397.6,2397.2,1.3875]
[1750538553866,0.98979745,2397.5,2397.4,0.83409]
[1750538554067,1.82384745,2397.5,2397.4,0.83409]
[1750538554265,0.98979745,2397.5,2397.4,0.83409]
[1750538554568,1.82384745,2397.5,2397.4,0.83409]
[1750538555275,0.98979745,2397.5,2397.4,0.83409]
[1750538555466,0.06847599,2397.4,2397.2,10.84159947]
[1750538555667,0.06847599,2397.4,2397.3,2.22872]
[1750538556066,3.2078,2397.9,2397.3,7.22872]
[1750538556266,4.04172,2397.9,2397.5,7.93702947]
[1750538556464,3.2078,2397.9,2397.8,0.83395]
[1750538557669,3.2078,2397.9,2397.8,1.49495]
[1750538558065,3.2078,2397.9,2397.7,2.22856]
[1750538558379,0.7102,2397.8,2397.7,2.22856]
[1750538560475,3.2078,2397.9,2397.8,0.83395]
[1750538561073,3.2078,2397.9,2397.8,1.52465]
[1750538561872,4.04171,2397.9,2397.8,0.6907]
[1750538562071,0.83395,2397.8,2397.7,2.22855]
[1750538562368,4.04174,2397.9,2397.8,0.83395]
[1750538563973,3.2078,2397.9,2397.8,0.83395]
[1750538564176,3.2078,2397.9,2397.8,2.16155]
[1750538564971,3.2078,2398.2,2398.1,0.83384]
[1750538565171,0.6747,2398.4,2398.3,0.83377]
[1750538565372,0.83382,2398.2,2398.0,1.3276]
[1750538565573,0.83382,2398.2,2398.1,7.64284]
[1750538565773,0.8338,2398.3,2398.1,7.64284]
[1750538566473,4.72858947,2398.3,2397.9,0.8339]
[1750538566674,0.83385,2398.1,2398.0,0.83387]
[1750538566871,0.83388,2398.0,2397.9,0.83389]
[1750538567071,0.83391,2397.9,2397.8,0.83393]
[1750538567376,0.8339,2398.0,2397.9,0.83391]
[1750538567976,0.83391,2397.9,2397.8,7.64192]
[1750538568176,1.52021,2397.9,2397.8,7.64192]
[1750538568476,1.52021,2397.9,2397.8,0.83392]
[1750538569075,0.6954,2398.1,2398.0,0.83385]
[1750538569076,0.83385,2398.1,2398.0,0.83385]
[1750538569278,0.83383,2398.2,2398.1,0.83384]
[1750538569571,0.83385,2398.1,2398.0,0.83386]
[1750538570572,2.08452,2398.2,2397.6,5.67493207]
[1750538570877,0.83395,2397.8,2397.7,0.83395]
[1750538571678,0.83398,2397.7,2397.6,7.64199]
[1750538571881,0.83398,2397.7,2397.6,6.808]
[1750538572282,1.53287,2397.8,2397.7,0.83398]
[1750538573582,0.6989,2397.8,2397.7,0.83398]
[1750538574481,1.53285,2397.8,2397.7,0.83398]
[1750538574677,0.6989,2397.8,2397.6,0.834]
[1750538574977,0.6989,2397.8,2397.5,0.83403]
[1750538575176,0.83402,2397.6,2397.4,7.64206]
[1750538575483,0.83402,2397.6,2397.5,0.83405]
[1750538575677,0.83405,2397.5,2397.4,0.83406]
[1750538575870,6.70809,2397.7,2397.2,6.808]
[1750538576075,0.8341,2397.4,2397.3,0.83411]
[1750538576572,0.83412,2397.3,2397.0,3.2078]